[Event "Titled Tuesday Blitz November 9 2021"]
[White "Macovei, Andrei"]
[Black "Paravyan, David"]
[WhiteFideId "13904680"]
[BlackFideId "4194985"]
[WhiteElo "2389"]
[BlackElo "2639"]
[Result "1/2-1/2"]
[Round "02"]
[TimeControl "180+1"]
[Date "2021.11.09"]
[WhiteClock "0:00:07"]
[BlackClock "0:00:20"]

1. e4 {[%clk 0:02:55]}  e5 {[%clk 0:02:55]} 2. Nf3 {[%clk 0:02:55]}  Nc6 {[%clk 0:02:55]} 3. Bc4 {[%clk 0:02:55]}  d6 {[%clk 0:02:55]} 4. O-O {[%clk 0:02:52]}  Be7 {[%clk 0:02:44]} 5. d4 {[%clk 0:02:44]}  Nf6 {[%clk 0:02:35]} 6. Nc3 {[%clk 0:02:43]}  Bg4 {[%clk 0:02:33]} 7. dxe5 {[%clk 0:02:18]}  Nxe5 {[%clk 0:02:30]} 8. Be2 {[%clk 0:02:18]}  Bxf3 {[%clk 0:02:28]} 9. Bxf3 {[%clk 0:02:18]}  O-O {[%clk 0:02:28]} 10. Be2 {[%clk 0:02:13]}  c6 {[%clk 0:02:24]} 11. f4 {[%clk 0:02:12]}  Qb6+ {[%clk 0:02:24]} 12. Kh1 {[%clk 0:02:10]}  Ng6 {[%clk 0:02:24]} 13. Bd3 {[%clk 0:02:01]}  Rad8 {[%clk 0:02:22]} 14. Qe2 {[%clk 0:01:57]}  Rfe8 {[%clk 0:02:21]} 15. b3 {[%clk 0:01:46]}  Bf8 {[%clk 0:02:20]} 16. Be3 {[%clk 0:01:44]}  Qa5 {[%clk 0:02:19]} 17. Bd2 {[%clk 0:01:41]}  Qh5 {[%clk 0:02:19]} 18. Qxh5 {[%clk 0:01:38]}  Nxh5 {[%clk 0:02:20]} 19. g3 {[%clk 0:01:35]}  Nf6 {[%clk 0:02:19]} 20. Rae1 {[%clk 0:01:35]}  h6 {[%clk 0:02:19]} 21. Bc1 {[%clk 0:01:30]}  Re7 {[%clk 0:02:16]} 22. Bb2 {[%clk 0:01:30]}  Rde8 {[%clk 0:02:15]} 23. Re2 {[%clk 0:01:30]}  Nd7 {[%clk 0:02:12]} 24. Rfe1 {[%clk 0:01:23]}  Nc5 {[%clk 0:02:12]} 25. Kg2 {[%clk 0:01:23]}  Rd7 {[%clk 0:02:10]} 26. Kf3 {[%clk 0:01:21]}  Rdd8 {[%clk 0:02:10]} 27. Nd1 {[%clk 0:01:16]}  Ne7 {[%clk 0:02:10]} 28. Ne3 {[%clk 0:01:09]}  Nc8 {[%clk 0:02:10]} 29. h4 {[%clk 0:01:07]}  Nb6 {[%clk 0:02:09]} 30. h5 {[%clk 0:01:06]}  a5 {[%clk 0:02:10]} 31. a4 {[%clk 0:01:06]}  Nbd7 {[%clk 0:01:59]} 32. Nf5 {[%clk 0:01:05]}  Nxd3 {[%clk 0:01:58]} 33. cxd3 {[%clk 0:01:05]}  Nc5 {[%clk 0:01:59]} 34. Rh1 {[%clk 0:00:44]}  Nxd3 {[%clk 0:01:54]} 35. Bc3 {[%clk 0:00:45]}  b6 {[%clk 0:01:51]} 36. Rh4 {[%clk 0:00:44]}  Kh7 {[%clk 0:01:46]} 37. Rg4 {[%clk 0:00:43]}  g6 {[%clk 0:01:43]} 38. hxg6+ {[%clk 0:00:42]}  fxg6 {[%clk 0:01:44]} 39. Nh4 {[%clk 0:00:39]}  Re6 {[%clk 0:01:41]} 40. f5 {[%clk 0:00:37]}  gxf5 {[%clk 0:01:42]} 41. exf5 {[%clk 0:00:38]}  Rxe2 {[%clk 0:01:33]} 42. Kxe2 {[%clk 0:00:39]}  Ne5 {[%clk 0:01:33]} 43. Bxe5 {[%clk 0:00:38]}  dxe5 {[%clk 0:01:32]} 44. Rg6 {[%clk 0:00:36]}  Rd6 {[%clk 0:01:28]} 45. Ke3 {[%clk 0:00:30]}  Rxg6 {[%clk 0:01:20]} 46. Nxg6 {[%clk 0:00:31]}  Bd6 {[%clk 0:01:21]} 47. Ke4 {[%clk 0:00:31]}  Kg7 {[%clk 0:00:57]} 48. Nxe5 {[%clk 0:00:26]}  Kf6 {[%clk 0:00:56]} 49. Ng4+ {[%clk 0:00:18]}  Kg5 {[%clk 0:00:54]} 50. Ne5 {[%clk 0:00:12]}  Bc7 {[%clk 0:00:51]} 51. g4 {[%clk 0:00:08]}  b5 {[%clk 0:00:41]} 52. Nf3+ {[%clk 0:00:05]}  Kf6 {[%clk 0:00:41]} 53. Nd4 {[%clk 0:00:05]}  bxa4 {[%clk 0:00:38]} 54. bxa4 {[%clk 0:00:06]}  c5 {[%clk 0:00:38]} 55. Ne6 {[%clk 0:00:06]}  Bb6 {[%clk 0:00:34]} 56. Kd5 {[%clk 0:00:06]}  h5 {[%clk 0:00:27]} 57. gxh5 {[%clk 0:00:06]}  Kxf5 {[%clk 0:00:27]} 58. Nxc5 {[%clk 0:00:07]}  Kg5 {[%clk 0:00:26]} 59. Nb7 {[%clk 0:00:07]}  Kxh5 {[%clk 0:00:26]} 60. Kc6 {[%clk 0:00:08]}  Ba7 {[%clk 0:00:20]} 61. Nxa5 {[%clk 0:00:08]}  Kg6 {[%clk 0:00:20]} 62. Kb7 {[%clk 0:00:07]}  Bc5 {[%clk 0:00:21]} 63. Nc4 {[%clk 0:00:07]}  Bb4 {[%clk 0:00:21]} 64. Kb6 {[%clk 0:00:06]}  Kf5 {[%clk 0:00:20]} 65. Kb5 {[%clk 0:00:07]}  Be1 {[%clk 0:00:20]} 66. a5 {[%clk 0:00:07]}  Bxa5 {[%clk 0:00:20]} 1/2-1/2


[Site "https://www.chess.com"]

[Event "Titled Tuesday Blitz November 9 2021"]
[White "Makhnev, Denis"]
[Black "Ahn, Hongjin"]
[WhiteFideId "13707647"]
[BlackFideId "13201492"]
[WhiteElo "2537"]
[BlackElo "1873"]
[Result "1-0"]
[Round "02"]
[TimeControl "180+1"]
[Date "2021.11.09"]
[WhiteClock "0:00:58"]
[BlackClock "0:00:02"]

1. e4 {[%clk 0:03:00]}  c5 {[%clk 0:02:52]} 2. Nf3 {[%clk 0:03:01]}  d6 {[%clk 0:02:52]} 3. d4 {[%clk 0:03:00]}  cxd4 {[%clk 0:02:53]} 4. Nxd4 {[%clk 0:03:01]}  Nf6 {[%clk 0:02:54]} 5. Nc3 {[%clk 0:03:01]}  a6 {[%clk 0:02:54]} 6. Bg5 {[%clk 0:03:01]}  Nbd7 {[%clk 0:02:53]} 7. Bc4 {[%clk 0:03:00]}  Qc7 {[%clk 0:02:51]} 8. Bb3 {[%clk 0:02:51]}  e6 {[%clk 0:02:51]} 9. Qd2 {[%clk 0:02:42]}  Nc5 {[%clk 0:02:51]} 10. Bxf6 {[%clk 0:02:41]}  gxf6 {[%clk 0:02:52]} 11. O-O-O {[%clk 0:02:41]}  Bd7 {[%clk 0:02:47]} 12. f4 {[%clk 0:02:36]}  h5 {[%clk 0:02:41]} 13. Kb1 {[%clk 0:02:35]}  O-O-O {[%clk 0:02:39]} 14. f5 {[%clk 0:02:34]}  Bh6 {[%clk 0:02:36]} 15. Qf2 {[%clk 0:02:31]}  Rdf8 {[%clk 0:01:37]} 16. Rhe1 {[%clk 0:02:21]}  Kb8 {[%clk 0:01:21]} 17. Nf3 {[%clk 0:02:10]}  b5 {[%clk 0:01:06]} 18. Qd4 {[%clk 0:02:08]}  d5 {[%clk 0:00:23]} 19. Bxd5 {[%clk 0:01:26]}  exd5 {[%clk 0:00:17]} 20. Nxd5 {[%clk 0:01:27]}  Qd6 {[%clk 0:00:17]} 21. e5 {[%clk 0:01:19]}  fxe5 {[%clk 0:00:16]} 22. Nxe5 {[%clk 0:01:20]}  Be8 {[%clk 0:00:16]} 23. Qb4 {[%clk 0:01:09]}  Rhg8 {[%clk 0:00:08]} 24. Nf6 {[%clk 0:01:00]}  Qxf6 {[%clk 0:00:04]} 25. Qxc5 {[%clk 0:01:00]}  Bf4 {[%clk 0:00:03]} 26. Rd6 {[%clk 0:00:58]}  Bxe5 {[%clk 0:00:02]} 27. Qb6+ {[%clk 0:00:58]} 1-0


[Site "https://www.chess.com"]

[Event "Titled Tuesday Blitz November 9 2021"]
[White "Martinez Alcantara, Jose Eduardo"]
[Black "Kalashian, David"]
[WhiteFideId "3805662"]
[BlackFideId "13302418"]
[WhiteElo "2690"]
[BlackElo "2490"]
[Result "1-0"]
[Round "02"]
[TimeControl "180+1"]
[Date "2021.11.09"]
[WhiteClock "0:00:04"]
[BlackClock "0:00:01"]

1. e4 {[%clk 0:03:00]}  c6 {[%clk 0:02:58]} 2. d4 {[%clk 0:03:00]}  g6 {[%clk 0:02:59]} 3. Nf3 {[%clk 0:02:56]}  Bg7 {[%clk 0:02:59]} 4. c3 {[%clk 0:02:56]}  d6 {[%clk 0:02:59]} 5. h3 {[%clk 0:02:55]}  Nf6 {[%clk 0:02:59]} 6. Bd3 {[%clk 0:02:56]}  O-O {[%clk 0:02:59]} 7. O-O {[%clk 0:02:56]}  Nbd7 {[%clk 0:02:59]} 8. Nbd2 {[%clk 0:02:46]}  b5 {[%clk 0:02:58]} 9. Re1 {[%clk 0:02:42]}  e5 {[%clk 0:02:53]} 10. Nf1 {[%clk 0:02:37]}  a6 {[%clk 0:02:50]} 11. Ng3 {[%clk 0:02:38]}  Re8 {[%clk 0:02:45]} 12. Bg5 {[%clk 0:02:36]}  h6 {[%clk 0:02:44]} 13. Be3 {[%clk 0:02:36]}  exd4 {[%clk 0:02:43]} 14. cxd4 {[%clk 0:02:35]}  c5 {[%clk 0:02:43]} 15. Qd2 {[%clk 0:02:33]}  Kh7 {[%clk 0:02:34]} 16. d5 {[%clk 0:02:33]}  Ne5 {[%clk 0:02:31]} 17. Nxe5 {[%clk 0:02:32]}  Rxe5 {[%clk 0:02:26]} 18. a4 {[%clk 0:02:30]}  Rb8 {[%clk 0:02:14]} 19. axb5 {[%clk 0:02:30]}  axb5 {[%clk 0:02:15]} 20. Rad1 {[%clk 0:02:22]}  Re8 {[%clk 0:02:10]} 21. b3 {[%clk 0:02:10]}  Nd7 {[%clk 0:02:06]} 22. f4 {[%clk 0:02:10]}  b4 {[%clk 0:02:05]} 23. e5 {[%clk 0:01:53]}  dxe5 {[%clk 0:01:59]} 24. f5 {[%clk 0:01:53]}  e4 {[%clk 0:01:49]} 25. fxg6+ {[%clk 0:01:44]}  fxg6 {[%clk 0:01:50]} 26. Nxe4 {[%clk 0:01:38]}  Ne5 {[%clk 0:01:47]} 27. Bf4 {[%clk 0:01:25]}  Nxd3 {[%clk 0:01:34]} 28. Qxd3 {[%clk 0:01:23]}  Ra8 {[%clk 0:01:24]} 29. Nxc5 {[%clk 0:00:54]}  Rxe1+ {[%clk 0:01:22]} 30. Rxe1 {[%clk 0:00:55]}  Bf5 {[%clk 0:01:22]} 31. Ne4 {[%clk 0:00:29]}  Qb6+ {[%clk 0:00:58]} 32. Kh1 {[%clk 0:00:29]}  Re8 {[%clk 0:00:53]} 33. Qf3 {[%clk 0:00:21]}  Qb5 {[%clk 0:00:40]} 34. Bg3 {[%clk 0:00:16]}  Qd7 {[%clk 0:00:24]} 35. Nc5 {[%clk 0:00:11]}  Rxe1+ {[%clk 0:00:23]} 36. Bxe1 {[%clk 0:00:12]}  Qe7 {[%clk 0:00:22]} 37. Bf2 {[%clk 0:00:12]}  Qe5 {[%clk 0:00:19]} 38. g4 {[%clk 0:00:06]}  Bc2 {[%clk 0:00:15]} 39. Kg1 {[%clk 0:00:06]}  Qa1+ {[%clk 0:00:09]} 40. Kg2 {[%clk 0:00:06]}  Qe5 {[%clk 0:00:10]} 41. h4 {[%clk 0:00:06]}  h5 {[%clk 0:00:09]} 42. gxh5 {[%clk 0:00:07]}  gxh5 {[%clk 0:00:09]} 43. Kg1 {[%clk 0:00:08]}  Bg6 {[%clk 0:00:09]} 44. Kf1 {[%clk 0:00:05]}  Qd6 {[%clk 0:00:06]} 45. Ne6 {[%clk 0:00:04]}  Bh6 {[%clk 0:00:06]} 46. Be3 {[%clk 0:00:02]}  Bxe3 {[%clk 0:00:05]} 47. Qxe3 {[%clk 0:00:03]}  Qxd5 {[%clk 0:00:04]} 48. Ng5+ {[%clk 0:00:04]}  Kh6 {[%clk 0:00:03]} 49. Ne6+ {[%clk 0:00:04]}  Kh7 {[%clk 0:00:03]} 50. Ng5+ {[%clk 0:00:05]}  Kh6 {[%clk 0:00:03]} 51. Ke1 {[%clk 0:00:05]}  Qf5 {[%clk 0:00:01]} 52. Qd4 {[%clk 0:00:04]} 1-0


[Site "https://www.chess.com"]

[Event "Titled Tuesday Blitz November 9 2021"]
[White "Nozdrachev, Leonid"]
[Black "Tari, Aryan"]
[WhiteFideId "24113433"]
[BlackFideId "1510045"]
[WhiteElo "2124"]
[BlackElo "2656"]
[Result "0-1"]
[Round "02"]
[TimeControl "180+1"]
[Date "2021.11.09"]
[WhiteClock "0:00:02"]
[BlackClock "0:00:55"]

1. e4 {[%clk 0:02:59]}  c6 {[%clk 0:02:51]} 2. d4 {[%clk 0:02:50]}  d5 {[%clk 0:02:51]} 3. Nc3 {[%clk 0:02:50]}  dxe4 {[%clk 0:02:45]} 4. Nxe4 {[%clk 0:02:51]}  Na6 {[%clk 0:02:34]} 5. Nf3 {[%clk 0:02:39]}  Nf6 {[%clk 0:02:33]} 6. Ng3 {[%clk 0:02:28]}  g6 {[%clk 0:02:31]} 7. c3 {[%clk 0:02:14]}  Bg7 {[%clk 0:02:31]} 8. Bxa6 {[%clk 0:02:13]}  bxa6 {[%clk 0:02:32]} 9. O-O {[%clk 0:02:12]}  O-O {[%clk 0:02:33]} 10. Ne5 {[%clk 0:02:11]}  c5 {[%clk 0:02:25]} 11. dxc5 {[%clk 0:02:09]}  Qc7 {[%clk 0:02:25]} 12. Qf3 {[%clk 0:01:51]}  Be6 {[%clk 0:02:14]} 13. Nd3 {[%clk 0:01:26]}  Bd5 {[%clk 0:02:14]} 14. Qf4 {[%clk 0:01:24]}  Qb7 {[%clk 0:02:09]} 15. c6 {[%clk 0:01:06]}  Bxc6 {[%clk 0:02:09]} 16. Nc5 {[%clk 0:01:06]}  Qb5 {[%clk 0:02:02]} 17. Qb4 {[%clk 0:00:56]}  Nd5 {[%clk 0:01:59]} 18. Qxb5 {[%clk 0:00:54]}  axb5 {[%clk 0:02:00]} 19. Re1 {[%clk 0:00:40]}  Rfd8 {[%clk 0:01:55]} 20. Bg5 {[%clk 0:00:37]}  Kf8 {[%clk 0:01:54]} 21. Rad1 {[%clk 0:00:34]}  h6 {[%clk 0:01:54]} 22. Bc1 {[%clk 0:00:28]}  Nb6 {[%clk 0:01:53]} 23. f3 {[%clk 0:00:24]}  a5 {[%clk 0:01:45]} 24. Kf2 {[%clk 0:00:23]}  b4 {[%clk 0:01:44]} 25. Nge4 {[%clk 0:00:21]}  Rac8 {[%clk 0:01:34]} 26. Bd2 {[%clk 0:00:19]}  Nc4 {[%clk 0:01:34]} 27. cxb4 {[%clk 0:00:17]}  Bd4+ {[%clk 0:01:28]} 28. Kg3 {[%clk 0:00:15]}  Nxd2 {[%clk 0:01:27]} 29. Rxd2 {[%clk 0:00:13]}  axb4 {[%clk 0:01:26]} 30. Red1 {[%clk 0:00:11]}  Be5+ {[%clk 0:01:18]} 31. f4 {[%clk 0:00:11]}  Rxd2 {[%clk 0:01:18]} 32. Rxd2 {[%clk 0:00:10]}  Bg7 {[%clk 0:01:19]} 33. a3 {[%clk 0:00:07]}  bxa3 {[%clk 0:01:17]} 34. bxa3 {[%clk 0:00:08]}  Ra8 {[%clk 0:01:17]} 35. Rd3 {[%clk 0:00:05]}  f5 {[%clk 0:01:13]} 36. Ne6+ {[%clk 0:00:04]}  Kf7 {[%clk 0:01:13]} 37. N4c5 {[%clk 0:00:05]}  Be4 {[%clk 0:01:09]} 38. Re3 {[%clk 0:00:02]}  Bb2 {[%clk 0:00:58]} 39. Nxe4 {[%clk 0:00:02]}  Kxe6 {[%clk 0:00:57]} 40. Nd2+ {[%clk 0:00:01]}  Kf7 {[%clk 0:00:57]} 41. Nf3 {[%clk 0:00:01]}  Bxa3 {[%clk 0:00:54]} 42. Rb3 {[%clk 0:00:02]}  Bd6 {[%clk 0:00:54]} 43. Kf2 {[%clk 0:00:01]}  Bxf4 {[%clk 0:00:54]} 44. g3 {[%clk 0:00:01]}  Bd6 {[%clk 0:00:55]} 45. Kf1 {[%clk 0:00:02]}  g5 {[%clk 0:00:55]} 46. Rd3 {[%clk 0:00:02]}  Kf6 {[%clk 0:00:56]} 47. Kg2 {[%clk 0:00:02]}  Ra2+ {[%clk 0:00:55]} 48. Rd2 {[%clk 0:00:01]}  Rxd2+ {[%clk 0:00:55]} 49. Nxd2 {[%clk 0:00:02]}  e5 {[%clk 0:00:55]} 50. Nc4 {[%clk 0:00:02]}  Bc5 {[%clk 0:00:55]} 51. Kf3 {[%clk 0:00:01]}  e4+ {[%clk 0:00:56]} 52. Ke2 {[%clk 0:00:01]}  f4 {[%clk 0:00:57]} 53. gxf4 {[%clk 0:00:01]}  gxf4 {[%clk 0:00:58]} 54. Nd2 {[%clk 0:00:01]}  Ke5 {[%clk 0:00:57]} 55. Nc4+ {[%clk 0:00:02]}  Kd4 {[%clk 0:00:57]} 56. Na5 {[%clk 0:00:02]}  f3+ {[%clk 0:00:57]} 57. Kf1 {[%clk 0:00:01]}  e3 {[%clk 0:00:56]} 58. Nc6+ {[%clk 0:00:02]}  Ke4 {[%clk 0:00:55]} 59. Nd8 {[%clk 0:00:02]}  e2+ {[%clk 0:00:55]} 60. Ke1 {[%clk 0:00:02]}  Ke3 {[%clk 0:00:55]} 0-1


[Site "https://www.chess.com"]

[Event "Titled Tuesday Blitz November 9 2021"]
[White "Ostrovskiy, Aleksandr"]
[Black "Bilych, Olexiy"]
[WhiteFideId "2034239"]
[BlackFideId "14156504"]
[WhiteElo "2340"]
[BlackElo "2195"]
[Result "1-0"]
[Round "02"]
[TimeControl "180+1"]
[Date "2021.11.09"]
[WhiteClock "0:00:08"]
[BlackClock "0:00:05"]

1. e4 {[%clk 0:03:00]}  c5 {[%clk 0:02:58]} 2. Nc3 {[%clk 0:03:00]}  Nc6 {[%clk 0:02:58]} 3. Bb5 {[%clk 0:03:00]}  Nd4 {[%clk 0:02:57]} 4. Nf3 {[%clk 0:02:59]}  a6 {[%clk 0:02:58]} 5. Bd3 {[%clk 0:02:56]}  Nc6 {[%clk 0:02:58]} 6. O-O {[%clk 0:02:51]}  e6 {[%clk 0:02:54]} 7. b3 {[%clk 0:02:50]}  g6 {[%clk 0:02:52]} 8. Bb2 {[%clk 0:02:48]}  Bg7 {[%clk 0:02:52]} 9. Re1 {[%clk 0:02:47]}  d6 {[%clk 0:02:49]} 10. Na4 {[%clk 0:02:45]}  e5 {[%clk 0:02:47]} 11. Bf1 {[%clk 0:02:35]}  Nge7 {[%clk 0:02:44]} 12. Nc3 {[%clk 0:02:24]}  O-O {[%clk 0:02:42]} 13. a4 {[%clk 0:02:24]}  h6 {[%clk 0:02:30]} 14. Bc4 {[%clk 0:02:18]}  Na5 {[%clk 0:02:16]} 15. d3 {[%clk 0:02:02]}  Nxc4 {[%clk 0:02:03]} 16. dxc4 {[%clk 0:02:03]}  f5 {[%clk 0:02:03]} 17. Qd3 {[%clk 0:01:37]}  Nc6 {[%clk 0:01:43]} 18. Rad1 {[%clk 0:01:23]}  Nd4 {[%clk 0:01:43]} 19. Nd2 {[%clk 0:01:20]}  f4 {[%clk 0:01:25]} 20. f3 {[%clk 0:01:14]}  g5 {[%clk 0:01:23]} 21. Nd5 {[%clk 0:01:13]}  Be6 {[%clk 0:01:07]} 22. Bxd4 {[%clk 0:00:48]}  cxd4 {[%clk 0:00:59]} 23. c3 {[%clk 0:00:44]}  g4 {[%clk 0:00:32]} 24. cxd4 {[%clk 0:00:41]}  g3 {[%clk 0:00:30]} 25. Nf1 {[%clk 0:00:23]}  Qh4 {[%clk 0:00:22]} 26. Nc7 {[%clk 0:00:19]}  Bf7 {[%clk 0:00:18]} 27. Nxa8 {[%clk 0:00:17]}  Rxa8 {[%clk 0:00:19]} 28. c5 {[%clk 0:00:12]}  exd4 {[%clk 0:00:18]} 29. cxd6 {[%clk 0:00:11]}  Be5 {[%clk 0:00:19]} 30. Rc1 {[%clk 0:00:10]}  Qf6 {[%clk 0:00:13]} 31. d7 {[%clk 0:00:09]}  Rd8 {[%clk 0:00:11]} 32. Rc8 {[%clk 0:00:09]}  Kg7 {[%clk 0:00:12]} 33. Rxd8 {[%clk 0:00:07]}  Qxd8 {[%clk 0:00:13]} 34. hxg3 {[%clk 0:00:08]}  fxg3 {[%clk 0:00:13]} 35. f4 {[%clk 0:00:08]}  Bxf4 {[%clk 0:00:13]} 36. Qxd4+ {[%clk 0:00:09]}  Kh7 {[%clk 0:00:11]} 37. e5 {[%clk 0:00:09]}  Bg5 {[%clk 0:00:06]} 38. e6 {[%clk 0:00:09]}  Bg6 {[%clk 0:00:05]} 39. e7 {[%clk 0:00:07]}  Bxe7 {[%clk 0:00:05]} 40. Rxe7+ {[%clk 0:00:08]} 1-0


[Site "https://www.chess.com"]

[Event "Titled Tuesday Blitz November 9 2021"]
[White "Ozen, Deniz"]
[Black "Maltsevskaya, Aleksandra"]
[WhiteFideId "6349196"]
[BlackFideId "24174041"]
[WhiteElo "2326"]
[BlackElo "2285"]
[Result "1-0"]
[Round "02"]
[TimeControl "180+1"]
[Date "2021.11.09"]
[WhiteClock "0:00:17"]
[BlackClock "0:00:01"]

1. d4 {[%clk 0:03:00]}  Nf6 {[%clk 0:02:44]} 2. Bf4 {[%clk 0:03:01]}  e6 {[%clk 0:02:41]} 3. e3 {[%clk 0:03:01]}  b6 {[%clk 0:02:40]} 4. Qf3 {[%clk 0:03:01]}  d5 {[%clk 0:02:26]} 5. Nd2 {[%clk 0:03:01]}  Bb7 {[%clk 0:02:25]} 6. Bd3 {[%clk 0:03:00]}  Nbd7 {[%clk 0:02:16]} 7. g4 {[%clk 0:02:59]}  h6 {[%clk 0:02:13]} 8. h4 {[%clk 0:02:59]}  c5 {[%clk 0:00:58]} 9. g5 {[%clk 0:02:58]}  hxg5 {[%clk 0:00:58]} 10. hxg5 {[%clk 0:02:59]}  Rxh1 {[%clk 0:00:58]} 11. Qxh1 {[%clk 0:03:00]}  Ng8 {[%clk 0:00:55]} 12. g6 {[%clk 0:02:58]}  f5 {[%clk 0:00:48]} 13. Ngf3 {[%clk 0:02:53]}  c4 {[%clk 0:00:46]} 14. Be2 {[%clk 0:02:52]}  Qe7 {[%clk 0:00:40]} 15. c3 {[%clk 0:02:41]}  O-O-O {[%clk 0:00:39]} 16. O-O-O {[%clk 0:02:40]}  b5 {[%clk 0:00:35]} 17. Ng5 {[%clk 0:02:28]}  b4 {[%clk 0:00:24]} 18. Nb1 {[%clk 0:02:23]}  Nb6 {[%clk 0:00:20]} 19. Nf7 {[%clk 0:02:21]}  Nf6 {[%clk 0:00:14]} 20. Nxd8 {[%clk 0:02:18]}  Kxd8 {[%clk 0:00:14]} 21. Qh8 {[%clk 0:02:15]}  Na4 {[%clk 0:00:11]} 22. Bg5 {[%clk 0:02:02]}  bxc3 {[%clk 0:00:10]} 23. bxc3 {[%clk 0:01:52]}  Kd7 {[%clk 0:00:09]} 24. Qh2 {[%clk 0:01:27]}  Nxc3 {[%clk 0:00:07]} 25. Nxc3 {[%clk 0:01:03]}  Qa3+ {[%clk 0:00:07]} 26. Kd2 {[%clk 0:01:03]}  Ne4+ {[%clk 0:00:06]} 27. Ke1 {[%clk 0:00:58]}  Qxc3+ {[%clk 0:00:06]} 28. Kf1 {[%clk 0:00:58]}  Nxg5 {[%clk 0:00:06]} 29. Qb8 {[%clk 0:00:57]}  Qb4 {[%clk 0:00:06]} 30. a3 {[%clk 0:00:55]}  Qb6 {[%clk 0:00:05]} 31. Qxf8 {[%clk 0:00:52]}  c3 {[%clk 0:00:01]} 32. Qxg7+ {[%clk 0:00:51]}  Ke8 {[%clk 0:00:01]} 33. Qg8+ {[%clk 0:00:35]}  Ke7 {[%clk 0:00:01]} 34. g7 {[%clk 0:00:34]}  Ba6 {[%clk 0:00:01]} 35. Qf8+ {[%clk 0:00:31]}  Kd7 {[%clk 0:00:01]} 36. g8=Q {[%clk 0:00:21]}  Bxe2+ {[%clk 0:00:02]} 37. Kg2 {[%clk 0:00:22]}  Bf3+ {[%clk 0:00:02]} 38. Kg3 {[%clk 0:00:18]}  Qc7+ {[%clk 0:00:02]} 39. Kh4 {[%clk 0:00:16]}  Qh2+ {[%clk 0:00:01]} 40. Kxg5 {[%clk 0:00:17]}  Qh5+ {[%clk 0:00:01]} 41. Kf6 {[%clk 0:00:17]}  Qh4+ {[%clk 0:00:01]} 42. Qg5 {[%clk 0:00:17]} 1-0


[Site "https://www.chess.com"]

[Event "Titled Tuesday Blitz November 9 2021"]
[White "Provotorov, Ivan"]
[Black "Khusnutdinov, Rustam"]
[WhiteFideId "4154657"]
[BlackFideId "13701703"]
[WhiteElo "2291"]
[BlackElo "2571"]
[Result "0-1"]
[Round "02"]
[TimeControl "180+1"]
[Date "2021.11.09"]
[WhiteClock "0:00:05"]
[BlackClock "0:00:46"]

1. c4 {[%clk 0:03:00]}  e5 {[%clk 0:02:56]} 2. Nc3 {[%clk 0:03:01]}  Bb4 {[%clk 0:02:55]} 3. Qc2 {[%clk 0:03:00]}  Nf6 {[%clk 0:02:54]} 4. Nf3 {[%clk 0:03:01]}  d6 {[%clk 0:02:51]} 5. e3 {[%clk 0:02:49]}  O-O {[%clk 0:02:45]} 6. d4 {[%clk 0:02:39]}  Nc6 {[%clk 0:02:30]} 7. Be2 {[%clk 0:02:23]}  Bg4 {[%clk 0:02:25]} 8. dxe5 {[%clk 0:02:18]}  dxe5 {[%clk 0:02:21]} 9. O-O {[%clk 0:02:17]}  Bxc3 {[%clk 0:02:12]} 10. Qxc3 {[%clk 0:02:14]}  e4 {[%clk 0:02:11]} 11. Nd4 {[%clk 0:02:09]}  Bxe2 {[%clk 0:01:39]} 12. Nxe2 {[%clk 0:02:10]}  Qd3 {[%clk 0:01:39]} 13. Qxd3 {[%clk 0:02:01]}  exd3 {[%clk 0:01:40]} 14. Nf4 {[%clk 0:02:02]}  Rad8 {[%clk 0:01:40]} 15. Bd2 {[%clk 0:02:01]}  Rfe8 {[%clk 0:01:31]} 16. Rad1 {[%clk 0:01:47]}  Ne4 {[%clk 0:01:30]} 17. Nd5 {[%clk 0:01:36]}  Ne5 {[%clk 0:01:24]} 18. Nxc7 {[%clk 0:01:05]}  Nxd2 {[%clk 0:01:07]} 19. Rxd2 {[%clk 0:00:25]}  Nxc4 {[%clk 0:01:05]} 20. Rxd3 {[%clk 0:00:10]}  Rxd3 {[%clk 0:01:05]} 21. Nxe8 {[%clk 0:00:10]}  Nxb2 {[%clk 0:01:01]} 22. Rb1 {[%clk 0:00:10]}  b6 {[%clk 0:00:58]} 23. Kf1 {[%clk 0:00:09]}  Na4 {[%clk 0:00:56]} 24. Nc7 {[%clk 0:00:07]}  Nc3 {[%clk 0:00:51]} 25. Rc1 {[%clk 0:00:06]}  Nxa2 {[%clk 0:00:50]} 26. Rc4 {[%clk 0:00:06]}  Nc3 {[%clk 0:00:46]} 27. Ne8 {[%clk 0:00:05]}  Rd1# {[%clk 0:00:46]} 0-1


[Site "https://www.chess.com"]

[Event "Titled Tuesday Blitz November 9 2021"]
[White "Sjugirov, Sanan"]
[Black "Ghazarian, Kirk"]
[WhiteFideId "4189302"]
[BlackFideId "30908604"]
[WhiteElo "2653"]
[BlackElo "2003"]
[Result "1-0"]
[Round "02"]
[TimeControl "180+1"]
[Date "2021.11.09"]
[WhiteClock "0:02:46"]
[BlackClock "0:01:41"]

1. e4 {[%clk 0:03:00]}  c5 {[%clk 0:02:59]} 2. Nf3 {[%clk 0:03:00]}  e6 {[%clk 0:03:00]} 3. d3 {[%clk 0:02:59]}  Nc6 {[%clk 0:02:57]} 4. g3 {[%clk 0:02:59]}  g6 {[%clk 0:02:56]} 5. Bg2 {[%clk 0:02:58]}  Bg7 {[%clk 0:02:56]} 6. h4 {[%clk 0:02:58]}  h6 {[%clk 0:02:51]} 7. O-O {[%clk 0:02:57]}  Nge7 {[%clk 0:02:51]} 8. c3 {[%clk 0:02:57]}  d5 {[%clk 0:02:45]} 9. Qe2 {[%clk 0:02:57]}  O-O {[%clk 0:02:42]} 10. e5 {[%clk 0:02:55]}  b6 {[%clk 0:02:38]} 11. Bf4 {[%clk 0:02:53]}  Ba6 {[%clk 0:02:26]} 12. a4 {[%clk 0:02:52]}  d4 {[%clk 0:02:18]} 13. c4 {[%clk 0:02:50]}  Bb7 {[%clk 0:02:16]} 14. Nbd2 {[%clk 0:02:49]}  Qc7 {[%clk 0:02:07]} 15. Ne4 {[%clk 0:02:49]}  Nxe5 {[%clk 0:02:00]} 16. Nxe5 {[%clk 0:02:48]}  Bxe5 {[%clk 0:01:41]} 17. Nf6+ {[%clk 0:02:46]} 1-0


[Site "https://www.chess.com"]

[Event "Titled Tuesday Blitz November 9 2021"]
[White "Solovchuk, Oleksiy"]
[Black "Hakobyan, Aram"]
[WhiteFideId "14115220"]
[BlackFideId "13306677"]
[WhiteElo "2295"]
[BlackElo "2557"]
[Result "0-1"]
[Round "02"]
[TimeControl "180+1"]
[Date "2021.11.09"]
[WhiteClock "0:00:21"]
[BlackClock "0:01:14"]

1. d4 {[%clk 0:01:32]}  e6 {[%clk 0:02:55]} 2. Nf3 {[%clk 0:01:32]}  f5 {[%clk 0:02:55]} 3. e3 {[%clk 0:01:33]}  Nf6 {[%clk 0:02:54]} 4. Be2 {[%clk 0:01:34]}  d5 {[%clk 0:02:54]} 5. O-O {[%clk 0:01:35]}  Bd6 {[%clk 0:02:55]} 6. c4 {[%clk 0:01:35]}  c6 {[%clk 0:02:53]} 7. Ne5 {[%clk 0:01:34]}  O-O {[%clk 0:02:52]} 8. Nd2 {[%clk 0:01:34]}  Bd7 {[%clk 0:02:46]} 9. f4 {[%clk 0:01:31]}  Be8 {[%clk 0:02:45]} 10. b3 {[%clk 0:01:31]}  Nbd7 {[%clk 0:02:42]} 11. a4 {[%clk 0:01:30]}  Qe7 {[%clk 0:02:35]} 12. c5 {[%clk 0:01:30]}  Bc7 {[%clk 0:02:32]} 13. b4 {[%clk 0:01:30]}  Nxe5 {[%clk 0:02:26]} 14. dxe5 {[%clk 0:01:28]}  Ne4 {[%clk 0:02:20]} 15. Nxe4 {[%clk 0:01:25]}  fxe4 {[%clk 0:02:16]} 16. Qd4 {[%clk 0:01:25]}  g5 {[%clk 0:02:12]} 17. Bb2 {[%clk 0:01:16]}  Bg6 {[%clk 0:02:09]} 18. g4 {[%clk 0:01:12]}  h5 {[%clk 0:01:28]} 19. f5 {[%clk 0:01:11]}  exf5 {[%clk 0:01:28]} 20. gxf5 {[%clk 0:00:55]}  Bxf5 {[%clk 0:01:22]} 21. e6 {[%clk 0:00:35]}  Kh7 {[%clk 0:01:21]} 22. Rxf5 {[%clk 0:00:33]}  Rxf5 {[%clk 0:01:21]} 23. Bxh5 {[%clk 0:00:33]}  Be5 {[%clk 0:01:19]} 24. Bg4 {[%clk 0:00:26]}  Raf8 {[%clk 0:01:13]} 25. Bxf5+ {[%clk 0:00:23]}  Rxf5 {[%clk 0:01:14]} 26. Qd2 {[%clk 0:00:23]}  Bxb2 {[%clk 0:01:13]} 27. Qxb2 {[%clk 0:00:22]}  Qxe6 {[%clk 0:01:13]} 28. Rf1 {[%clk 0:00:21]}  Rxf1+ {[%clk 0:01:13]} 29. Kxf1 {[%clk 0:00:21]}  Qh3+ {[%clk 0:01:14]} 0-1


[Site "https://www.chess.com"]